bitfinex-derivatives/quotes_BTCF0:USTF0_20251011
["timestamp","ask_amount","ask_price","bid_price","bid_amount"]
[1760143693322,0.12424638,113110.0,113100.0,0.5326931]
[1760143693519,0.12424638,113110.0,113100.0,0.55696254]
[1760143693933,0.12424638,113110.0,113100.0,0.5569621]
[1760143694228,0.12424638,113110.0,113100.0,0.5326931]
[1760143694732,8.638e-05,113110.0,113100.0,0.9326931]
[1760143694925,8.638e-05,113110.0,113100.0,0.98191214]
[1760143695629,0.12416,113160.0,113150.0,0.1718541]
[1760143695827,0.12416,113180.0,113170.0,0.0882385]
[1760143696027,0.12416,113180.0,113170.0,0.0836]
[1760143696926,0.52426603,113180.0,113160.0,0.3608]
[1760143697120,0.52426603,113180.0,113150.0,0.4490518]
[1760143697121,0.04608,113160.0,113150.0,0.4490518]
[1760143697319,0.12416,113160.0,113150.0,0.55684065]
[1760143697518,0.12416,113160.0,113150.0,0.4444]
[1760143697730,0.12416,113150.0,113140.0,0.532659]
[1760143697924,0.04608,113160.0,113150.0,0.0882541]
[1760143698124,0.04608,113170.0,113150.0,0.5326541]
[1760143698321,0.12416,113170.0,113160.0,0.5326463]
[1760143698822,0.04618603,113180.0,113160.0,0.55679911]
[1760143699023,0.12426603,113180.0,113170.0,0.1718385]
[1760143699230,0.12426603,113180.0,113170.0,0.5326385]
[1760143700325,0.00010603,113180.0,113170.0,0.5326385]
[1760143700524,0.00010603,113180.0,113170.0,0.9326385]
[1760143700723,0.00010603,113180.0,113170.0,0.9575985]
[1760143701024,0.48496,113220.0,113180.0,0.02647]
[1760143701225,0.12416,113210.0,113200.0,0.0836]
[1760143701427,0.12416,113210.0,113200.0,0.1718149]
[1760143702129,0.12416,113210.0,113200.0,0.0836]
[1760143702329,0.07808,113190.0,113180.0,0.5326276]
[1760143702536,0.12416,113190.0,113180.0,0.55676169]
[1760143702828,0.12416,113210.0,113200.0,0.0836]
[1760143703035,0.04608,113200.0,113190.0,0.4490227]
[1760143703231,0.04608,113210.0,113200.0,0.0882149]
[1760143703436,0.04608,113220.0,113200.0,0.55677813]
[1760143703735,0.12416,113220.0,113210.0,0.5326071]
[1760143704336,0.12426895,113220.0,113210.0,0.0836]
[1760143704533,0.04608,113210.0,113200.0,0.4490129]
[1760143704734,0.12416,113210.0,113200.0,0.5326129]
[1760143704934,0.12416,113210.0,113200.0,0.5567518]
[1760143706029,0.88496,113210.0,113200.0,0.0241389]
[1760143706235,0.12416,113200.0,113190.0,0.1718227]
[1760143706436,0.12416,113200.0,113190.0,0.5326227]
[1760143706632,0.12416,113200.0,113190.0,0.1718227]
[1760143706838,0.12416,113200.0,113190.0,0.55678973]
[1760143707029,0.12416,113200.0,113190.0,0.1718227]
[1760143707339,0.12416,113200.0,113190.0,0.55679058]
[1760143707640,0.12416,113200.0,113190.0,0.1718227]
[1760143707936,0.12416,113200.0,113190.0,0.55681419]
[1760143708132,0.52416,113200.0,113190.0,0.02419149]
[1760143708330,0.52416,113200.0,113190.0,0.11241419]
[1760143708931,0.88496,113200.0,113180.0,0.3608]
[1760143709131,0.12416,113190.0,113180.0,0.3608]
[1760143709339,0.12416,113190.0,113180.0,0.38506194]
[1760143709541,0.12416,113190.0,113180.0,0.47329244]
[1760143709739,0.12416,113190.0,113180.0,0.38506194]
[1760143709944,0.12416,113190.0,113180.0,0.47329244]
[1760143711436,0.12416,113190.0,113180.0,0.47332433]
[1760143711740,0.12416,113190.0,113180.0,0.55692433]
[1760143712935,0.12416,113200.0,113190.0,0.1718227]
[1760143713134,0.12416,113200.0,113190.0,0.58008113]
[1760143714637,0.52416,113200.0,113190.0,0.04745843]
[1760143714847,0.04608,113180.0,113170.0,0.0231646]
[1760143715038,0.4850345,113180.0,113160.0,0.14232907]
[1760143715238,0.1242345,113180.0,113170.0,0.0882382]
[1760143715438,7.45e-05,113180.0,113170.0,0.5558028]
[1760143715743,7.45e-05,113180.0,113170.0,0.56355707]
[1760143715934,7.45e-05,113180.0,113170.0,0.98900707]
[1760143716134,7.45e-05,113180.0,113170.0,1.00565003]
[1760143716731,7.45e-05,113180.0,113170.0,1.00465003]
[1760143717441,7.45e-05,113180.0,113170.0,0.9580882]
[1760143717945,0.12416,113220.0,113210.0,0.1718071]
[1760143718143,0.12416,113220.0,113210.0,0.19510108]
[1760143718336,0.12416,113220.0,113210.0,0.0882071]
[1760143718537,0.12416,113220.0,113210.0,0.11926574]
[1760143718845,0.12416,113220.0,113210.0,0.55882574]
[1760143719049,0.12645,113210.0,113200.0,0.48008318]
[1760143719343,0.12645,113210.0,113200.0,0.57435827]
[1760143719740,0.12645,113210.0,113200.0,0.21355827]
[1760143719934,0.88725,113210.0,113200.0,0.03110548]
[1760143720441,0.88725,113210.0,113200.0,0.02335631]
[1760143721048,0.48725,113210.0,113200.0,0.02335631]
[1760143721343,0.12645,113210.0,113200.0,0.03110548]
[1760143721543,0.88725,113210.0,113200.0,0.03110548]
[1760143722343,0.12645,113190.0,113180.0,0.12534797]
[1760143722552,0.12645,113190.0,113180.0,0.57437877]
[1760143722841,0.12645,113190.0,113180.0,0.13481877]
[1760143723247,0.07955,113190.0,113180.0,0.21357877]
[1760143723440,0.07955,113190.0,113180.0,0.9634608]
[1760143723641,0.07955,113200.0,113190.0,0.166983]
[1760143723842,0.07955,113200.0,113190.0,0.57461268]
[1760143724143,0.07955,113210.0,113200.0,0.1669752]
[1760143724348,0.12645,113210.0,113200.0,0.1669752]
[1760143724736,0.12645,113210.0,113200.0,0.07876]
[1760143724936,0.12645,113200.0,113190.0,0.22928831]
[1760143725143,0.12645,113200.0,113190.0,0.59008831]
[1760143725341,0.48649304,113220.0,113210.0,0.07876]
[1760143725646,0.48649304,113220.0,113210.0,0.21396568]
[1760143726041,0.48649304,113220.0,113210.0,0.12575828]
[1760143726251,0.88649304,113220.0,113210.0,0.04699828]
[1760143726845,0.88649304,113220.0,113210.0,0.07160418]
[1760143727345,0.48649304,113220.0,113210.0,0.07160418]
[1760143727545,0.88649304,113220.0,113210.0,0.07160418]
[1760143727752,0.97469244,113220.0,113210.0,4.18e-06]
[1760143729244,0.88649304,113220.0,113210.0,4.18e-06]
[1760143729446,0.48649304,113220.0,113210.0,4.18e-06]
[1760143730852,0.97469244,113220.0,113210.0,4.18e-06]
[1760143732146,0.1256,113190.0,113180.0,0.0882302]
[1760143732345,0.4864,113190.0,113180.0,0.15089458]
[1760143732546,0.48649251,113190.0,113180.0,0.23243458]
[1760143732750,0.12569251,113190.0,113180.0,0.23243458]
[1760143733248,0.12569251,113190.0,113180.0,0.1697702]
[1760143734047,0.12569251,113190.0,113180.0,0.23243458]
[1760143734549,0.08048251,113190.0,113180.0,0.23243458]
[1760143734746,0.08048251,113190.0,113180.0,0.28194458]
[1760143735746,0.08048251,113190.0,113180.0,0.23243458]
[1760143736147,0.08048251,113190.0,113180.0,0.59323458]
[1760143736348,0.12569251,113190.0,113180.0,0.06266438]
[1760143736552,0.1256,113180.0,113170.0,0.06266438]
[1760143736746,0.4864,113180.0,113160.0,0.15090488]
[1760143736951,0.1256,113170.0,113160.0,0.23244488]
[1760143737149,0.04521,113160.0,113150.0,0.44035742]
[1760143737348,0.12193738,113160.0,113150.0,0.3608]
[1760143737648,0.12193738,113160.0,113140.0,0.57812402]
[1760143737649,0.48280706,113160.0,113140.0,0.15115226]
[1760143737848,0.48280706,113160.0,113150.0,0.0882545]
[1760143738156,0.48180706,113160.0,113150.0,0.0882545]
[1760143738656,0.48180706,113160.0,113150.0,0.0892545]
[1760143739248,0.08039,113140.0,113130.0,0.28228436]
[1760143739448,0.1256,113140.0,113130.0,0.1698839]
[1760143739849,0.4864,113140.0,113130.0,7.96e-05]
[1760143740051,0.8864,113140.0,113130.0,7.96e-05]
[1760143740246,0.5256,113140.0,113130.0,7.96e-05]
[1760143740451,0.8864,113140.0,113130.0,7.96e-05]
[1760143740948,0.8864,113140.0,113130.0,0.0010796]
[1760143741455,0.8864,113140.0,113130.0,7.96e-05]
[1760143743056,0.9746623,113140.0,113130.0,7.96e-05]
[1760143743457,0.8864,113140.0,113130.0,7.96e-05]
[1760143743757,0.4864,113140.0,113130.0,7.96e-05]
[1760143744151,0.4864,113140.0,113130.0,0.02320276]
[1760143744351,0.9746621,113140.0,113130.0,0.02320276]
[1760143744748,0.6138621,113140.0,113130.0,0.02320276]
[1760143744952,1.3354621,113140.0,113130.0,0.02320276]
[1760143745353,1.2472,113140.0,113130.0,0.02320276]
[1760143745561,1.3354621,113140.0,113130.0,0.02320276]
[1760143745759,0.8472,113140.0,113130.0,0.02320276]
[1760143747163,0.9354621,113140.0,113130.0,0.02320276]
[1760143747754,0.8472,113140.0,113130.0,0.02320276]
[1760143748353,1.2472,113140.0,113100.0,0.49596821]
[1760143748554,0.45972,113110.0,113100.0,0.11223994]
[1760143748755,0.45972,113110.0,113100.0,0.02394984]
[1760143749164,0.5480055,113110.0,113100.0,0.02394984]
[1760143749559,0.45972,113110.0,113100.0,0.02394984]
[1760143750865,0.45981401,113110.0,113100.0,0.02394984]
[1760143751071,0.46081401,113110.0,113100.0,0.02394984]
[1760143751465,0.94909961,113110.0,113080.0,0.088306]
[1760143751665,0.48638,113090.0,113080.0,0.088306]
[1760143752166,0.48638,113090.0,113070.0,0.0883134]
[1760143752362,0.38044401,113110.0,113100.0,0.0882934]
[1760143752558,0.08146401,113110.0,113100.0,0.2156234]
[1760143752768,0.08146401,113110.0,113100.0,0.9764234]
[1760143752969,0.08146401,113110.0,113100.0,1.00764715]
[1760143753562,9.401e-05,113110.0,113100.0,0.9764234]
[1760143753866,1e-08,113110.0,113100.0,1.02330151]
[1760143754063,1e-08,113110.0,113100.0,0.9764234]
[1760143754764,1e-08,113110.0,113100.0,0.5764234]
[1760143754968,1e-08,113110.0,113100.0,0.9764234]
[1760143755368,1e-08,113110.0,113100.0,1.03931386]
[1760143755564,1e-08,113110.0,113100.0,0.9764234]
[1760143755758,1e-08,113110.0,113100.0,1.03876503]
[1760143756468,1e-08,113110.0,113100.0,1.03976503]
[1760143757070,1e-08,113110.0,113100.0,0.9764234]
[1760143757768,1e-08,113110.0,113100.0,0.5764234]
[1760143758371,1e-08,113110.0,113100.0,0.9764234]
[1760143759375,0.08037,113150.0,113140.0,0.2155855]
[1760143759668,0.08037,113150.0,113140.0,0.24680826]
[1760143760463,0.08037,113150.0,113140.0,0.27065856]
[1760143760861,0.08137,113150.0,113140.0,0.27065856]
[1760143761064,0.08146491,113150.0,113140.0,0.27065856]
[1760143761664,0.08146491,113150.0,113140.0,0.22234856]
[1760143761968,0.88627491,113150.0,113140.0,0.05507306]
[1760143762367,0.88627491,113150.0,113140.0,0.0238503]
[1760143762368,0.97452931,113150.0,113140.0,0.0238503]
[1760143762572,0.97452931,113150.0,113140.0,3e-07]
[1760143762768,0.10173,113140.0,113130.0,0.03122276]
[1760143762970,0.46253,113140.0,113130.0,0.03122276]
[1760143763169,0.86253,113140.0,113130.0,0.03122276]
[1760143765068,0.86253,113140.0,113120.0,0.04683414]
[1760143765069,0.12558,113130.0,113120.0,0.03122276]
[1760143765366,0.48638,113130.0,113120.0,0.03122276]
[1760143765571,0.88638,113130.0,113120.0,0.03122276]
[1760143765869,0.09892,113120.0,113110.0,0.1663403]
[1760143766170,0.9479979,113120.0,113110.0,0.03122276]
[1760143766367,0.9479979,113120.0,113100.0,0.04683414]
[1760143766368,0.1156,113110.0,113100.0,0.04683414]
[1760143766568,0.87648591,113110.0,113100.0,0.03140982]
[1760143766970,0.0953,113100.0,113090.0,0.11970952]
[1760143767166,0.07394,113100.0,113090.0,0.16654366]
[1760143767370,0.07394,113100.0,113090.0,0.13513384]
[1760143767571,0.43474,113100.0,113090.0,0.13513384]
[1760143767766,0.07394,113100.0,113090.0,0.13513384]
[1760143768273,0.43474,113100.0,113090.0,0.13513384]
[1760143768468,0.4561,113100.0,113090.0,0.13513384]
[1760143768668,0.0953,113100.0,113090.0,0.13513384]
[1760143769673,0.4561,113100.0,113090.0,0.13513384]
[1760143769874,0.8561,113100.0,113090.0,0.13513384]
[1760143770372,0.8561,113100.0,113090.0,0.16655467]
[1760143771075,0.9443934,113100.0,113090.0,0.03142083]
[1760143771472,0.9443934,113100.0,113080.0,0.04683414]
[1760143771473,0.11801,113090.0,113080.0,0.03142083]
[1760143771774,0.47881,113090.0,113080.0,0.03142083]
[1760143772278,0.87881,113090.0,113080.0,0.03142083]
[1760143772473,0.09363,113080.0,113070.0,0.13515004]
[1760143772668,0.45443,113080.0,113070.0,0.11973421]
[1760143772869,0.49363,113080.0,113070.0,0.11973421]
[1760143773268,0.49363,113080.0,113070.0,0.03141831]
[1760143773474,0.85443,113080.0,113070.0,0.03141831]
[1760143773885,0.85443,113080.0,113070.0,0.11973511]
[1760143774372,0.85443,113080.0,113070.0,0.03141831]
[1760143774571,0.04166,113070.0,113060.0,0.07825245]
[1760143774878,0.4764,113070.0,113060.0,0.07035155]
[1760143775075,0.8764,113070.0,113060.0,0.05490509]
[1760143775572,0.0883246,113060.0,113050.0,0.03149504]
[1760143775872,0.43484793,113060.0,113050.0,0.05501318]
[1760143776080,0.43484793,113060.0,113050.0,0.1119579]
[1760143776277,0.92317253,113060.0,113050.0,0.0236255]
[1760143776671,0.11192,113040.0,113030.0,0.52736712]
[1760143776970,0.07394,113040.0,113030.0,0.48053568]
[1760143777572,0.07394,113040.0,113030.0,0.11973568]
[1760143777878,0.07394,113040.0,113030.0,0.16502568]
[1760143778387,0.07404094,113040.0,113030.0,0.16502568]
[1760143779078,0.07404094,113040.0,113030.0,0.24452568]
[1760143779386,0.07404094,113040.0,113030.0,1.00532568]
[1760143780781,0.07404094,113040.0,113030.0,0.07667768]
[1760143780978,0.07404094,113040.0,113030.0,0.16502568]
[1760143781169,0.07404094,113040.0,113030.0,0.133638]
[1760143781370,0.07404094,113040.0,113030.0,0.23841568]
[1760143781575,0.00010094,113040.0,113030.0,0.99921568]
[1760143781771,0.07905094,113040.0,113030.0,0.23841568]
[1760143782077,0.07905094,113040.0,113030.0,0.088348]
[1760143782878,0.07905094,113040.0,113030.0,0.449148]
[1760143783076,0.07905094,113040.0,113030.0,0.567568]
[1760143784079,0.07905094,113040.0,113030.0,0.59895568]
[1760143784280,0.07905094,113040.0,113030.0,0.23815568]
[1760143784480,0.43985094,113040.0,113020.0,0.16503018]
[1760143785181,0.43985094,113040.0,113030.0,0.088348]
[1760143785380,0.07905094,113040.0,113030.0,0.088348]
[1760143785783,0.07905094,113040.0,113030.0,0.449148]
[1760143785977,0.07905094,113040.0,113030.0,0.088348]
[1760143786185,0.07905094,113040.0,113030.0,0.161738]
[1760143786377,0.07905094,113040.0,113030.0,0.206768]
[1760143788178,0.07905094,113040.0,113030.0,0.567568]
[1760143788375,0.07905094,113040.0,113030.0,0.206768]
[1760143788576,0.07905094,113040.0,113030.0,0.23004713]
[1760143788776,0.07905094,113040.0,113030.0,0.11162713]
[1760143788976,0.43985094,113040.0,113030.0,0.02327913]
[1760143789183,0.07905094,113040.0,113030.0,0.11162713]
[1760143789382,0.43985094,113040.0,113030.0,0.02327913]
[1760143789680,0.07905094,113040.0,113030.0,0.11162713]
[1760143789887,0.83985094,113040.0,113030.0,0.02327913]
[1760143790088,0.92819114,113040.0,113030.0,0.02327913]
[1760143790484,0.83985094,113040.0,113030.0,0.02327913]
[1760143792084,0.83985094,113040.0,113030.0,0.04685339]
[1760143792285,0.92819114,113040.0,113030.0,0.02327913]
[1760143793079,0.92819114,113040.0,113030.0,0.04685339]
[1760143793281,0.83985094,113040.0,113030.0,0.13520149]
[1760143793479,0.83985094,113040.0,113030.0,0.04685339]
[1760143793680,0.92819124,113040.0,113030.0,0.02327913]
[1760143794480,0.92819124,113040.0,113030.0,0.04685339]
[1760143796076,0.92819124,113040.0,113030.0,0.02327913]
[1760143796276,0.92819124,113040.0,113030.0,0.04685339]
[1760143796589,0.52819124,113040.0,113030.0,0.04685339]
[1760143797281,0.07905094,113040.0,113030.0,0.26253149]
[1760143797476,0.07905094,113040.0,113030.0,0.70294987]
[1760143799382,0.07905094,113040.0,113030.0,0.68579137]
[1760143799586,0.43985094,113040.0,113030.0,0.68579137]
[1760143799883,0.43985094,113040.0,113030.0,0.23720968]
[1760143800088,0.07905094,113040.0,113030.0,0.28579137]
[1760143800589,0.07905094,113040.0,113030.0,0.15846137]
[1760143801687,0.07905094,113040.0,113030.0,1.06220276]
[1760143801688,4e-08,113040.0,113030.0,1.06220276]
[1760143801888,0.3608,113090.0,113080.0,0.135509]
[1760143802084,0.43873,113090.0,113080.0,0.10204297]
[1760143802390,0.43873,113090.0,113080.0,0.05484297]
[1760143802586,0.43873,113090.0,113080.0,0.14315197]
[1760143802886,0.43873,113090.0,113080.0,0.05484297]
[1760143803091,0.43873,113090.0,113080.0,0.14315197]
[1760143803301,0.43873,113090.0,113080.0,0.05484297]
[1760143803302,0.9280312,113090.0,113080.0,0.05484297]
[1760143803482,0.92814036,113090.0,113080.0,0.04695632]
[1760143803885,0.70493916,113090.0,113080.0,0.06082016]
[1760143804087,0.70493916,113090.0,113080.0,0.25278197]
[1760143804889,0.70493916,113090.0,113080.0,0.27646457]
[1760143805090,0.34413916,113090.0,113080.0,0.25278197]
[1760143805285,0.07903916,113090.0,113080.0,0.30012773]
[1760143805593,0.00110916,113090.0,113080.0,0.98201813]
[1760143805794,0.00110916,113090.0,113080.0,1.04514581]
[1760143806486,0.00110916,113090.0,113080.0,0.98201813]
[1760143807988,6e-08,113090.0,113080.0,1.04514581]
[1760143808195,6e-08,113090.0,113080.0,0.98201813]
[1760143808394,6e-08,113090.0,113080.0,1.06157555]
[1760143808587,6e-08,113090.0,113080.0,0.98201813]
[1760143810190,0.07399,113130.0,113120.0,0.1236]
[1760143810397,0.07399,113130.0,113120.0,0.2118778]
[1760143810696,0.07399,113130.0,113120.0,0.23543232]
[1760143810995,0.07399,113130.0,113120.0,0.2118778]
[1760143811197,0.07399,113130.0,113120.0,0.1236]
[1760143811395,0.83579,113130.0,113110.0,0.43094452]
[1760143811591,0.47520128,113130.0,113110.0,0.43094452]
[1760143811993,0.47520128,113130.0,113110.0,0.51922832]
[1760143812386,0.47520128,113130.0,113110.0,0.1348738]
[1760143812590,0.43590128,113130.0,113120.0,0.2118778]
[1760143812894,0.07510128,113130.0,113120.0,0.2118778]
[1760143814498,0.07410128,113130.0,113120.0,0.2118778]
[1760143814693,0.07510128,113130.0,113120.0,0.2118778]
[1760143814888,0.07510128,113130.0,113120.0,0.0882778]
[1760143815096,0.11440128,113130.0,113120.0,0.0882778]
[1760143815398,0.07510128,113130.0,113120.0,0.5726778]
[1760143815995,0.07510128,113130.0,113120.0,0.59492796]
[1760143816203,0.07410128,113130.0,113120.0,0.59492796]
[1760143816896,0.07410128,113130.0,113120.0,0.23412796]
[1760143818004,0.43490128,113130.0,113120.0,0.23412796]
[1760143818198,0.43490128,113130.0,113120.0,0.06884016]
[1760143818498,0.43490128,113130.0,113120.0,0.11052796]
[1760143819293,0.43490128,113130.0,113120.0,0.23412892]
[1760143820994,0.07410128,113130.0,113120.0,0.23412892]
[1760143821496,0.43490128,113130.0,113120.0,0.06884112]
[1760143821698,0.43490128,113130.0,113120.0,0.14585112]
[1760143822090,0.07410128,113130.0,113120.0,0.14585112]
[1760143822492,0.07410128,113130.0,113120.0,0.23412902]
[1760143824202,0.07410128,113130.0,113120.0,0.59492902]
[1760143824502,0.07399,113170.0,113160.0,0.2118467]
[1760143825095,0.07399,113170.0,113160.0,0.23414364]
[1760143825298,0.07399,113170.0,113160.0,0.23436641]
[1760143825795,0.07399,113170.0,113160.0,0.59516641]
[1760143825997,0.07399,113170.0,113160.0,0.25787154]
[1760143826197,0.07599,113170.0,113160.0,0.25787154]
[1760143826699,0.43679,113170.0,113160.0,0.14611971]
[1760143826892,0.07599,113170.0,113160.0,0.14611971]
[1760143827094,0.1642289,113170.0,113160.0,0.04602484]
[1760143827299,0.9250289,113170.0,113160.0,0.02251971]
[1760143827601,0.07399,113150.0,113140.0,0.02350513]
[1760143827799,0.07399,113150.0,113140.0,0.04605075]
[1760143828003,0.1622445,113150.0,113140.0,0.02254562]
[1760143828204,0.1622445,113150.0,113140.0,0.04605075]
[1760143828205,0.9230445,113150.0,113140.0,0.04605075]
[1760143828601,0.9230445,113150.0,113140.0,0.02254562]
[1760143829303,0.92313441,113150.0,113140.0,0.02254562]
[1760143832303,0.92313441,113150.0,113130.0,0.0882678]
[1760143832605,0.43479,113140.0,113130.0,0.2344905]
[1760143832805,0.43479,113140.0,113130.0,0.1574805]
[1760143833106,0.87409,113140.0,113130.0,0.0226227]
[1760143833314,0.9623523,113140.0,113130.0,0.0226227]
[1760143833506,0.9623523,113140.0,113120.0,0.0882773]
[1760143833702,0.43479,113130.0,113120.0,0.11089623]
[1760143834106,0.43379,113130.0,113120.0,0.11089623]
[1760143834304,0.43379,113130.0,113120.0,0.25800136]
[1760143834505,0.3608,113140.0,113120.0,0.65800136]
[1760143834705,8.991e-05,113150.0,113140.0,0.0882623]
[1760143834907,8.991e-05,113150.0,113140.0,0.65011935]
[1760143835107,8.991e-05,113150.0,113140.0,1.02661422]
[1760143835702,8.991e-05,113150.0,113140.0,1.07372327]
[1760143835908,8.991e-05,113150.0,113140.0,1.04239028]
[1760143836104,8.991e-05,113150.0,113140.0,0.64239028]
[1760143836808,8.991e-05,113150.0,113140.0,0.64239018]
[1760143837209,0.07407991,113150.0,113140.0,0.64239018]
[1760143837508,0.07407991,113150.0,113140.0,0.62676138]
[1760143837713,8.991e-05,113150.0,113140.0,1.07387043]
[1760143838014,8.991e-05,113150.0,113140.0,1.02675716]
[1760143838618,8.991e-05,113150.0,113140.0,0.66595716]
[1760143838916,8.991e-05,113150.0,113140.0,1.02675716]
[1760143839211,0.07407991,113150.0,113140.0,0.62675716]
[1760143839514,0.07407991,113150.0,113140.0,0.26595716]
[1760143840309,0.07407991,113150.0,113140.0,0.62675716]
[1760143840514,0.07407991,113150.0,113140.0,0.26595716]
[1760143840709,0.07407991,113150.0,113140.0,0.62675716]
[1760143840908,8.991e-05,113150.0,113140.0,0.62675716]
[1760143841109,0.07268991,113150.0,113140.0,0.62675716]
[1760143841706,8.991e-05,113150.0,113140.0,1.02675716]
[1760143841912,8.991e-05,113150.0,113140.0,1.04239018]
[1760143842313,8.991e-05,113150.0,113140.0,0.59528113]
[1760143842807,8.991e-05,113150.0,113140.0,0.65814253]
[1760143843019,1e-08,113150.0,113140.0,0.99528113]
[1760143843321,0.0726,113200.0,113190.0,0.2088178]
[1760143843613,0.0726,113200.0,113190.0,0.26285139]
[1760143844613,0.4334,113200.0,113190.0,0.17462809]
[1760143844812,0.0726,113200.0,113190.0,0.17462809]
[1760143845015,0.4334,113200.0,113190.0,0.17462809]
[1760143845419,0.43348772,113200.0,113190.0,0.10061809]
[1760143846015,0.52170322,113200.0,113190.0,0.05402809]
[1760143846215,0.56100322,113200.0,113190.0,0.05402809]
[1760143847419,0.96100322,113200.0,113190.0,0.04614573]
[1760143848123,0.56100322,113200.0,113190.0,0.04614573]
[1760143848419,0.96100322,113200.0,113190.0,0.04614573]
[1760143848613,0.96200322,113200.0,113190.0,0.02261893]
[1760143849110,0.96100322,113200.0,113190.0,0.02261893]
[1760143849316,0.96200322,113200.0,113190.0,0.02261893]
[1760143850422,0.96200322,113200.0,113170.0,0.03140916]
[1760143850423,0.0882311,113180.0,113170.0,0.0235268]
[1760143850618,0.8830911,113180.0,113170.0,0.0465289]
[1760143851016,0.43406,113180.0,113170.0,0.1347677]
[1760143852319,0.43506,113180.0,113170.0,0.2524177]
[1760143852727,0.43506,113180.0,113170.0,0.26030006]
[1760143853023,0.43406,113180.0,113170.0,0.26030006]
[1760143853325,0.07326,113180.0,113170.0,0.26030006]
[1760143854521,0.43406,113180.0,113170.0,0.26030006]
[1760143856923,0.07326,113180.0,113170.0,0.26030006]
[1760143857125,0.07326,113180.0,113170.0,0.26030016]
[1760143857332,0.43406,113180.0,113170.0,0.09897126]
[1760143857627,0.5222911,113180.0,113170.0,0.05441126]
[1760143858822,0.92239742,113180.0,113170.0,0.05441126]
[1760143859021,0.92239742,113180.0,113170.0,0.04655251]
[1760143859429,0.83416632,113180.0,113170.0,0.14265016]
[1760143860027,0.92239742,113180.0,113170.0,0.05441126]
[1760143861929,0.92339742,113180.0,113170.0,0.05441126]
[1760143862126,0.92339742,113180.0,113170.0,0.04657655]
[1760143862323,0.92339742,113180.0,113170.0,0.0230021]
[1760143862835,0.92339742,113180.0,113170.0,0.04657655]
[1760143863429,0.92339742,113180.0,113170.0,0.13481545]
[1760143863626,0.43516632,113180.0,113170.0,0.17937545]
[1760143863827,0.43516632,113180.0,113170.0,0.17939118]
[1760143863828,0.52339742,113180.0,113170.0,0.17939118]
[1760143864022,0.52339742,113180.0,113170.0,0.21080034]
[1760143864226,0.52339742,113180.0,113170.0,0.18721016]
[1760143864427,0.52339742,113180.0,113170.0,0.14265016]
[1760143864924,0.07436632,113180.0,113170.0,0.16626529]
[1760143865131,0.43516632,113180.0,113170.0,0.16626529]
[1760143865432,0.43516632,113180.0,113170.0,0.14265016]
[1760143865626,0.43416632,113180.0,113170.0,0.14265016]
[1760143865926,0.52239742,113180.0,113170.0,0.14265016]
[1760143866532,0.43516632,113180.0,113170.0,0.16625657]
[1760143866933,0.43516632,113180.0,113170.0,0.18721016]
[1760143867927,0.43516632,113180.0,113170.0,0.21081222]
[1760143868332,0.43516632,113180.0,113170.0,0.18721016]
[1760143868829,0.43416632,113180.0,113170.0,0.14265016]
[1760143869026,0.52239742,113180.0,113170.0,0.14265016]
[1760143869230,0.52239742,113180.0,113170.0,0.07801975]
[1760143869737,0.52239742,113180.0,113170.0,0.04661059]
[1760143869935,0.52339742,113180.0,113170.0,0.04661059]
[1760143870633,0.92339742,113180.0,113170.0,5.9e-07]
[1760143870930,0.0882389,113170.0,113160.0,0.03140916]
[1760143871134,0.4490389,113170.0,113150.0,0.07299916]
[1760143871332,0.3608,113160.0,113150.0,0.16125336]
[1760143871634,0.4490467,113160.0,113150.0,0.03140916]
[1760143871834,0.4491201,113160.0,113140.0,0.03140916]
[1760143872037,0.4490545,113150.0,113140.0,0.03140916]
[1760143872337,0.4490545,113150.0,113130.0,0.11967886]
[1760143872629,0.3608,113150.0,113130.0,0.16126886]
[1760143872834,0.3608,113140.0,113130.0,0.23445886]
[1760143873629,0.3608,113140.0,113130.0,0.16126886]
[1760143873830,0.3608,113140.0,113130.0,0.03240916]
[1760143875032,0.3608,113140.0,113130.0,0.16226926]
[1760143875239,0.3608,113140.0,113130.0,0.23545926]
[1760143876239,0.3608,113140.0,113130.0,0.03240916]
[1760143876634,0.3608,113140.0,113130.0,0.001]
[1760143876833,0.4490623,113140.0,113130.0,0.001]
[1760143877436,0.84914678,113140.0,113130.0,0.001]
[1760143877740,0.76088448,113140.0,113130.0,0.001]
[1760143878842,0.84914678,113140.0,113130.0,0.001]
[1760143880538,0.0882752,113130.0,113110.0,0.03140916]
[1760143880743,0.4490795,113120.0,113090.0,0.52209606]
[1760143880942,8.585e-05,113110.0,113100.0,0.1298835]
[1760143881442,0.36088585,113110.0,113100.0,0.1298835]
[1760143881845,0.36088585,113110.0,113100.0,0.5298835]
[1760143882739,8.585e-05,113110.0,113100.0,0.5298835]
[1760143882941,0.36088585,113110.0,113100.0,0.55315107]
[1760143885240,0.44917155,113110.0,113100.0,0.46485757]
[1760143885442,0.44917155,113110.0,113100.0,0.02326757]
[1760143885644,0.84917155,113110.0,113100.0,0.02326757]
[1760143885861,0.0883091,113080.0,113070.0,0.07308657]
[1760143886160,0.44920002,113080.0,113070.0,8.741e-05]
[1760143886358,0.87191907,113080.0,113070.0,8.741e-05]
[1760143886555,1.18360997,113080.0,113040.0,0.07299916]
[1760143886760,0.4491325,113050.0,113030.0,0.04159]
[1760143886956,0.4481403,113040.0,113020.0,0.07299916]
[1760143887257,0.3608,113030.0,113010.0,0.16135826]
[1760143887463,0.3608,113030.0,113020.0,0.088356]
[1760143887764,0.36087226,113030.0,113020.0,0.203136]
[1760143887959,7.226e-05,113030.0,113020.0,0.99534516]
[1760143888165,7.226e-05,113030.0,113020.0,0.963936]
[1760143888658,7.226e-05,113030.0,113020.0,0.99534516]
[1760143888858,7.226e-05,113030.0,113020.0,0.63454516]
[1760143889062,7.226e-05,113030.0,113020.0,0.603136]
[1760143889361,7.226e-05,113030.0,113020.0,0.99534516]
[1760143889557,7.226e-05,113030.0,113020.0,0.99634516]
[1760143890960,7.226e-05,113030.0,113020.0,0.07399916]
[1760143891266,7.226e-05,113030.0,113020.0,0.964936]
[1760143891653,7.226e-05,113030.0,113020.0,0.564936]
[1760143891863,7.226e-05,113030.0,113020.0,0.964936]
[1760143892561,7.226e-05,113030.0,113020.0,0.47658]
[1760143892766,7.226e-05,113030.0,113020.0,0.564936]
[1760143893257,7.226e-05,113030.0,113020.0,0.204136]
[1760143893462,7.226e-05,113030.0,113020.0,0.564936]
[1760143893759,7.226e-05,113030.0,113020.0,0.964936]
[1760143893960,7.226e-05,113030.0,113020.0,0.99634516]
[1760143894462,7.226e-05,113030.0,113020.0,1.04345891]
[1760143894858,7.226e-05,113030.0,113020.0,0.59634516]
[1760143895263,7.226e-05,113030.0,113020.0,0.564936]
[1760143895459,7.226e-05,113030.0,113020.0,0.61204975]
[1760143897858,7.226e-05,113030.0,113020.0,0.63508369]
[1760143898662,7.226e-05,113030.0,113020.0,0.58796994]